fUSD/lending_fUSD_20250804
["ID","MTS","AMOUNT","RATE_DAILY","PERIOD"]
[377318706,1754340640272,-517.0,0.00048694,10]
[377318708,1754340640281,-19684.5511142,0.00048711,4]
[377318710,1754340640290,-150.0,0.00048722,7]
[377318712,1754340640299,-820.80942442,0.00048727,2]
[377318714,1754340640310,-1000.0,0.00048739,2]
[377318716,1754340640319,-151.0,0.00048746,120]
[377318718,1754340640330,-150.0,0.00048767,7]
[377318720,1754340640341,-160.39630456,0.00048794,14]
[377318722,1754340640357,-150.52,0.00048878,30]
[377318723,1754340640377,-1000.0,0.00048887,14]
[377318726,1754340640394,-966.26932242,0.00048892,2]
[377318728,1754340640404,-1000.0,0.000489,7]
[377318730,1754340640414,-165.39,0.00048978,30]
[377318732,1754340640424,-359.08,0.00048978,30]
[377318734,1754340640433,-165.39,0.00048978,30]
[377318735,1754340640442,-165.39,0.00048978,30]
[377318737,1754340640452,-165.39,0.00048978,30]
[377318739,1754340640462,-165.39,0.00048978,30]
[377318740,1754340640471,-277.77,0.00048978,30]
[377318741,1754340640481,-150.0,0.00048984,7]
[377318742,1754340640491,-200.0,0.0004899,120]
[377318743,1754340640500,-16055.5339713,0.0004899,4]
[377318744,1754340640510,-10000.6596625,0.00049,5]
[377318745,1754340640520,-1000.0,0.00049,120]
[377318746,1754340640530,-150.0,0.00049006,14]
[377318747,1754340640542,-1898.41241047,0.00049011,27]
[377318748,1754340640552,-150.0,0.00049026,7]
[377318749,1754340640561,-1000.0,0.00049028,14]
[377318751,1754340640570,-1111.72922042,0.00049056,2]
[377318753,1754340640580,-1055.0,0.000491,7]
[377318755,1754340640591,-150.0,0.00049158,7]
[377318758,1754340640599,-1000.0,0.00049164,10]
[377318759,1754340640610,-150.0,0.00049179,7]
[377318761,1754340640619,-150.0,0.00049212,7]
[377318764,1754340640628,-788.8070492,0.0004922,15]
[377318766,1754340640638,-1257.18911841,0.00049221,2]
[377318768,1754340640649,-439.60369544,0.00049274,14]
[377318770,1754340640658,-150.0,0.00049313,7]
[377318771,1754340640668,-1000.0,0.00049335,30]
[377318773,1754340640677,-150.0,0.0004934,7]
[377318775,1754340640686,-150.0,0.00049346,7]
[377318778,1754340640696,-150.0,0.00049366,7]
[377318779,1754340640705,-1000.0,0.00049376,30]
[377318781,1754340640714,-1402.64901641,0.00049386,2]
[377318783,1754340640724,-150.0,0.00049401,7]
[377318785,1754340640733,-150.0,0.00049405,7]
[377318787,1754340640742,-150.0,0.00049406,7]
[377318789,1754340640752,-150.0,0.00049409,30]
[377318791,1754340640761,-150.0,0.00049411,7]
[377318793,1754340640770,-150.0,0.00049437,7]
[377318795,1754340640779,-517.0,0.00049447,12]
[377318797,1754340640789,-282.9,0.00049473,14]
[377318799,1754340640798,-150.0,0.00049484,30]
[377318801,1754340640807,-1921.19763621,0.00049497,15]
[377318803,1754340640817,-150.0,0.00049513,7]
[377318805,1754340640826,-150.0,0.00049521,7]
[377318807,1754340640835,-150.0,0.00049524,7]
[377318809,1754340640845,-150.0,0.00049525,7]
[377318811,1754340640854,-1548.10891441,0.0004955,2]
[377318813,1754340640864,-150.0,0.00049556,7]
[377318815,1754340640873,-380.37,0.00049557,120]
[377318817,1754340640882,-150.0,0.0004957,7]
[377318819,1754340640892,-150.0,0.00049582,7]
[377318821,1754340640901,-16055.5339713,0.00049595,4]
[377318823,1754340640910,-150.0,0.00049598,7]
[377318825,1754340640920,-2029.95825106,0.000496,120]
[377318827,1754340640930,-800.0,0.000496,18]
[377318829,1754340640939,-150.0,0.00049602,7]
[377318831,1754340640948,-150.0,0.00049604,7]
[377318833,1754340640958,-16055.5339713,0.00049605,4]
[377318836,1754340640972,-19684.5511142,0.00049605,4]
[377318838,1754340640982,-1000.0,0.00049606,2]
[377318840,1754340640992,-16055.5339713,0.00049611,4]
[377318842,1754340641002,-150.0,0.00049612,7]
[377318844,1754340641012,-19684.5511142,0.00049615,4]
[377318846,1754340641022,-603.40307922,0.00049616,120]
[377318848,1754340641032,-22214.5502,0.00049616,2]
[377318850,1754340641042,-1000.0,0.00049616,2]
[377318852,1754340641053,-5000.0,0.00049616,120]
[377318854,1754340641063,-603.40307921,0.00049621,120]
[377318856,1754340641073,-150.0,0.00049623,30]
[377318858,1754340641082,-17667.724,0.00049625,2]
[377318861,1754340641092,-603.40307921,0.00049625,120]
[377318863,1754340641102,-1898.41241047,0.00049625,28]
[377318865,1754340641112,-399.0,0.00049632,7]
[377318867,1754340641122,-150.0,0.00049635,7]
[377318869,1754340641131,-217.37603021,0.00049636,120]
[377318871,1754340641141,-150.0,0.00049636,120]
[377318873,1754340641151,-200.0,0.00049636,120]
[377318875,1754340641160,-150.0,0.00049636,120]
[377318877,1754340641170,-150.0,0.00049636,120]
[377318879,1754340641179,-150.0,0.00049636,120]
[377318881,1754340641189,-150.0,0.00049636,120]
[377318883,1754340641198,-500.0,0.00049636,120]
[377318885,1754340641208,-150.0,0.00049636,120]
[377318887,1754340641217,-150.0,0.00049636,120]
[377318889,1754340641227,-150.0,0.00049636,120]
[377318891,1754340641237,-556.0,0.00049636,120]
[377318893,1754340641246,-200.0,0.00049636,2]
[377318895,1754340641256,-500.0,0.00049636,120]
[377318897,1754340641265,-441.0,0.00049636,120]
[377318899,1754340641276,-150.0,0.00049636,120]
[377318901,1754340641286,-500.0,0.00049636,120]
[377318903,1754340641297,-150.0,0.00049636,60]
[377318905,1754340641307,-150.0,0.00049636,120]
[377318907,1754340641316,-150.0,0.00049636,120]
[377318909,1754340641325,-150.0,0.00049636,120]
[377318911,1754340641335,-500.0,0.00049636,120]
[377318913,1754340641344,-500.0,0.00049636,120]
[377318915,1754340641354,-271.36348917,0.00049636,120]
[377318917,1754340641364,-150.0,0.00049636,120]
[377318919,1754340641374,-150.0,0.00049636,120]
[377318921,1754340641383,-150.0,0.00049636,2]
[377318923,1754340641393,-150.0,0.00049636,120]
[377318925,1754340641402,-150.0,0.00049636,2]
[377318927,1754340641412,-211.425049,0.00049637,2]
[377318929,1754340641422,-150.0,0.00049669,7]
[377318931,1754340641431,-500.0,0.00049673,10]
[377318933,1754340641441,-602524.85521345,0.00049673,120]
[377318935,1754340641451,-781.59699,0.0004968,7]
[377318937,1754340641460,-151.08,0.00049682,120]
[377318939,1754340641470,-16055.5339713,0.0004969,4]
[377318941,1754340641480,-16055.5339713,0.00049692,4]
[377318943,1754340641489,-4610.42,0.00049693,120]
[377318946,1754340641499,-150.0,0.00049697,7]
[377318948,1754340641508,-150.0,0.000497,2]
[377318949,1754340641519,-1600.0,0.000497,18]
[377318952,1754340641528,-19684.5511142,0.00049701,4]
[377318953,1754340641543,-16055.5339713,0.00049701,4]
[377318956,1754340641553,-151.0,0.00049702,120]
[377318957,1754340641562,-39369.1022284,0.00049702,4]
[377318959,1754340641572,-48166.6019139,0.00049702,4]
[377318962,1754340641581,-155.47109,0.00049704,120]
[377318964,1754340641591,-151.0,0.00049704,120]
[377318966,1754340641600,-151.0,0.00049704,120]
[377318967,1754340641609,-48166.6019139,0.00049705,4]
[377318970,1754340641620,-32111.0679426,0.00049705,4]
[377318971,1754340641631,-1285.55,0.00049711,15]
[377318973,1754340641640,-1285.55,0.00049711,15]
[377318976,1754340641650,-1285.55,0.00049711,15]
[377318977,1754340641659,-1285.55,0.00049711,15]
[377318979,1754340641668,-1285.55,0.00049711,15]
[377318982,1754340641678,-1285.55,0.00049711,15]
[377318984,1754340641687,-1285.55,0.00049711,15]
[377318986,1754340641696,-1285.55,0.00049711,15]
[377318988,1754340641706,-1285.55,0.00049711,15]
[377318990,1754340641716,-1285.55,0.00049711,15]
[377318992,1754340641725,-1285.55,0.00049711,15]
[377318994,1754340641735,-1285.55,0.00049711,15]
[377318996,1754340641744,-1285.55,0.00049711,15]
[377318998,1754340641753,-1285.55,0.00049711,15]
[377319000,1754340641762,-1285.55,0.00049711,15]
[377319002,1754340641772,-1285.55,0.00049711,15]
[377319004,1754340641782,-1285.55,0.00049711,15]
[377319006,1754340641792,-1285.55,0.00049711,15]
[377319008,1754340641801,-1285.55,0.00049711,15]
[377319010,1754340641810,-1285.55,0.00049711,15]
[377319012,1754340641820,-1285.55,0.00049711,15]
[377319014,1754340641830,-1285.55,0.00049711,15]
[377319016,1754340641840,-1285.55,0.00049711,15]
[377319018,1754340641849,-1285.64801889,0.00049711,15]
[377319020,1754340641858,-300.0,0.00049711,30]
[377319022,1754340641868,-88888.0,0.00049712,120]
[377319024,1754340641877,-300.0,0.00049714,30]
[377319026,1754340641887,-300.0,0.00049714,30]
[377319028,1754340641897,-193178.74303851,0.00049714,44]
[377319030,1754340641907,-286.652019,0.00049714,120]
[377319032,1754340641916,-3527.9796048,0.00049714,61]
[377319034,1754340641925,-98422.7555709,0.00049715,4]
[377319036,1754340641935,-59053.6533425,0.00049715,4]
[377319038,1754340641945,-112388.737799,0.00049715,4]
[377319040,1754340641954,-1693.56881241,0.00049715,2]
[377319042,1754340641963,-237.450864,0.00049715,120]
[377319044,1754340641973,-735333.87017242,0.0004972,7]
[377319047,1754340641990,-2904.30149067,0.0004972,7]
[377319049,1754340642002,-2586.746,0.0004972,7]
[377319052,1754340642025,-206797.60498724,0.0004972,7]
[377319054,1754340642037,-4733.67244769,0.0004972,7]
[377319057,1754340642048,-4048.3,0.0004972,7]
[377319059,1754340642060,-1102.244,0.0004972,7]
[377319061,1754340642071,-2452.88647117,0.0004972,7]
[377319075,1754340642191,-2020.60253773,0.0004972,7]
[377319077,1754340642202,-520.9412705,0.0004972,7]
[377319079,1754340642214,-9490.93972458,0.0004972,7]
[377319081,1754340642226,-1481.563685,0.0004972,7]
[377319087,1754340642266,-2420.08390372,0.0004972,7]
[377319148,1754340642937,-1213.0,0.00031098,7]
[377319150,1754340642946,-22245.17730358,0.0004972,7]
[377319152,1754340642958,-903.08645034,0.0004972,7]
[377319158,1754340643012,-6863.92851033,0.0004972,7]
[377319161,1754340643024,-1661.4499995,0.0004972,7]
[377319196,1754340643328,-296.9,0.0004972,7]
[377319199,1754340643350,-854.64253658,0.000471,10]
[377319201,1754340643360,-310.05746342,0.0004972,7]
[377319203,1754340643371,-1680.07124214,0.0004972,7]
[377319206,1754340643382,-21085.30014755,0.0004972,7]
[377319208,1754340643393,-10498.6906368,0.0004972,7]
[377319213,1754340643435,-7005.61004971,0.0004972,7]
[377319215,1754340643447,-1153.7539228,0.0004972,7]
[377319217,1754340643458,-251.94970001,0.0004972,7]
[377319228,1754340643553,-962.70634916,0.0004972,7]
[377319230,1754340643564,-4846.4234683,0.0004972,7]
[377319233,1754340643575,-17419.8685603,0.0004972,7]
[377319241,1754340643646,-585.4185,0.0004972,7]
[377319248,1754340643710,-150.0,0.00049188,7]
[377319250,1754340643720,-3563.99999999,0.0004972,7]
[377319253,1754340643733,-2002.74382635,0.0004972,7]
[377319255,1754340643744,-2286.41945675,0.0004972,7]
[377319487,1754340646024,-495.19887065,0.00031098,7]
[377319490,1754340646042,-717.80112935,0.00031098,7]
[377319492,1754340646052,-182.44566147,0.00046833,120]
[377319494,1754340646061,-150.0,0.00048384,7]
[377319496,1754340646070,-150.0,0.00048474,7]
[377319498,1754340646080,-150.0,0.0004855,7]
[377319500,1754340646090,-150.0,0.00048634,7]
[377319502,1754340646099,-150.0,0.00048794,7]
[377319504,1754340646109,-150.0,0.00048797,7]
[377319506,1754340646118,-150.0,0.00048824,7]
[377319508,1754340646128,-150.0,0.00049058,7]
[377319510,1754340646137,-150.0,0.00049086,7]
[377319512,1754340646147,-150.0,0.00049089,7]
[377319514,1754340646156,-150.0,0.00049138,7]
[377319516,1754340646166,-150.0,0.00049168,7]
[377319518,1754340646176,-150.0,0.00049185,7]
[377319520,1754340646185,-150.0,0.00049353,7]
[377319522,1754340646194,-150.0,0.00049384,7]
[377319524,1754340646204,-150.0,0.00049485,7]
[377319526,1754340646213,-150.0,0.00049516,7]
[377319528,1754340646223,-150.0,0.00049551,7]
[377319530,1754340646232,-150.0,0.00049564,7]
[377319532,1754340646242,-150.0,0.00049661,7]
[377319534,1754340646252,-682.4000634,0.0004972,7]
[377319546,1754340646356,-982.39069702,0.0004972,7]
[377319548,1754340646368,-276.29565446,0.0004972,7]
[377319550,1754340646379,-709.00241687,0.0004972,7]
[377319552,1754340646391,-455.37695136,0.0004972,7]
[377319554,1754340646402,-683.916283,0.0004972,7]
[377319563,1754340646475,-24.85850941,0.0004972,7]
[377319577,1754340646603,-3366.20000004,0.0004972,7]
[377319580,1754340646624,-101415.25923475,0.0004972,7]
[377319582,1754340646635,-1319.2,0.0004972,7]
[377319689,1754340647769,-524.0,0.00049632,7]
[377319691,1754340647779,-14654.61217414,0.0004972,7]
[377319693,1754340647790,-726.65367492,0.0004972,7]
[377319695,1754340647801,-1822.78396786,0.0004972,7]
[377319697,1754340647813,-12356.02464791,0.0004972,7]
[377319699,1754340647824,-5972.37519812,0.0004972,7]
[377319702,1754340647836,-2515.00000138,0.0004972,7]
[377319704,1754340647848,-915.59059946,0.0004972,7]
[377319713,1754340647929,-1854.49224,0.0004972,7]
[377319715,1754340647941,-2514.30000025,0.0004972,7]
[377319717,1754340647952,-663.02749647,0.0004972,7]
[377319727,1754340648036,-4514.84278423,0.0004972,7]
[377319729,1754340648047,-27157.1470493,0.0004972,7]
[377319731,1754340648059,-754.46779999,0.0004972,7]
[377319739,1754340648120,-300.0,0.0004972,7]
[377319741,1754340648132,-35384.07720241,0.0004972,7]
[377319744,1754340648151,-878.22748838,0.0004972,7]
[377319746,1754340648163,-5729.4610446,0.0004972,7]
[377319750,1754340648193,-150.0,0.00048007,7]
[377319752,1754340648202,-318276.73524,0.0004972,7]
[377319755,1754340648217,-10387.57359813,0.0004972,7]
[377321668,1754340700442,-308.712627,0.00030942,2]
[377321669,1754340700466,-203.287373,0.00031097,3]
[377321670,1754340723864,-276.712627,0.00031097,3]
[377321671,1754340723891,-69.48414032,0.00031098,7]
[377321672,1754340726796,-165.80323268,0.00031098,7]
[377321725,1754341175167,156.0,0.00021589,5]
[377321752,1754341364280,156.76,0.00013699,2]
[377321827,1754341832113,-166.66666667,0.00030997,2]
[377321828,1754341832123,-627.96678522,0.00031047,120]
[377321829,1754341832136,-372.03321478,0.00031047,120]
[377321830,1754341832147,-156.76,0.00031311,2]
[377321831,1754341832157,-1213.0,0.00031359,7]
[377321832,1754341832166,-1213.0,0.00031359,7]
[377321833,1754341832178,-1213.0,0.00031359,7]
[377321834,1754341832188,-1213.0,0.00031359,7]
[377321835,1754341832197,-629.95678522,0.00031927,120]
[377321836,1754341832217,-370.04321478,0.00031927,120]
[377321837,1754341832228,-300.0,0.00033114,3]
[377321838,1754341832238,-400.0,0.00033114,2]
[377321839,1754341832247,-1071.07759068,0.00033114,3]
[377321840,1754341832260,-528.92240932,0.00033114,3]
[377321841,1754341832269,-500.0,0.000332,5]
[377321842,1754341832279,-200.0,0.00034,30]
[377321843,1754341832288,-1000.0,0.00034097,120]
[377321844,1754341832297,-1000.0,0.00034097,120]
[377321845,1754341832309,-1000.0,0.00034097,120]
[377321846,1754341832319,-156.64526541,0.000349,2]
[377321847,1754341832328,-192.07,0.00035127,2]
[377321848,1754341832338,-8379.73506885,0.00035455,2]
[377321849,1754341832348,-560.0,0.00035574,2]
[377321850,1754341832358,-800.0,0.00035719,3]
[377321851,1754341832368,-313.94182593,0.00036127,2]
[377321852,1754341832377,-249.0,0.000374,30]
[377321853,1754341832387,-500.0,0.00037781,2]
[377321854,1754341832397,-260.0,0.00038218,2]
[377321855,1754341832406,-150.0,0.00038356,12]
[377321856,1754341832416,-493.68,0.00038495,2]
[377321857,1754341832426,-600.0,0.00039482,7]
[377321858,1754341832435,-600.0,0.00039482,7]
[377321859,1754341832445,-233.87,0.00039482,7]
[377321860,1754341832454,-719.114,0.00040225,57]
[377321861,1754341832464,-493.68,0.00040225,2]
[377321862,1754341832474,-1146.95169054,0.00040732,2]
[377321863,1754341832484,-163.0,0.00041,90]
[377321864,1754341832494,-200.0,0.00041096,20]
[377321865,1754341832504,-464.0,0.00041288,2]
[377321866,1754341832513,-493.68,0.00041956,120]
[377321867,1754341832522,-707.73305663,0.00042267,2]
[377321868,1754341832533,-2975.49255573,0.00043243,2]
[377321869,1754341832542,-493.68,0.00043686,120]
[377321870,1754341832552,-3589.52,0.00043788,4]
[377321871,1754341832561,-160.25992418,0.00043836,2]
[377321872,1754341832571,-12605.99,0.00043977,2]
[377321873,1754341832580,-500.0,0.00044005,2]
[377321874,1754341832591,-1000.0,0.00044055,120]
[377321875,1754341832601,-1897.71430576,0.00044058,2]
[377321877,1754341832671,-484.68174308,0.00044058,2]
[377321888,1754341832769,-21517.60395116,0.00044058,2]
[377321890,1754341832779,-1000.0,0.00044058,30]
[377321891,1754341832789,-500.53637006,0.00044073,10]
[377321892,1754341832799,-250.0,0.000441,120]
[377321893,1754341832809,-150.94,0.00044127,120]
[377321894,1754341832818,-2704.74,0.00044274,2]
[377321896,1754341832827,-4242.74,0.00044347,2]
[377321898,1754341832838,-1000.0,0.0004445,2]
[377321900,1754341832848,-1000.0,0.00044632,2]
[377321902,1754341832857,-152.0,0.00044638,3]
[377321904,1754341832867,-210.36,0.00044701,2]
[377321906,1754341832877,-3448.31,0.00044734,2]
[377321908,1754341832887,-2751.0,0.00044808,120]
[377321910,1754341832897,-1318.95,0.00044903,120]
[377321912,1754341832907,-167.77,0.00045365,2]
[377321914,1754341832916,-493.68,0.00045417,120]
[377321916,1754341832927,-432.88,0.00045495,3]
[377321918,1754341832939,-2757.74659607,0.00045687,2]
[377321920,1754341832950,-2751.88560281,0.00045687,2]
[377321924,1754341832976,-1175.40780112,0.00045687,2]
[377321926,1754341832987,-151.0,0.0004573,120]
[377321928,1754341832996,-274.4,0.00045853,2]
[377321930,1754341833007,-987.0,0.000461,2]
[377321932,1754341833017,-175.0,0.00046174,7]
[377321934,1754341833027,-150.0,0.00046423,2]
[377321935,1754341833037,-169.68,0.00046446,2]
[377321936,1754341833046,-517.0,0.00046447,10]
[377321937,1754341833055,-165.66,0.00046455,2]
[377321938,1754341833064,-155.18237398,0.00046466,120]
[377321939,1754341833074,-433.33,0.00046491,2]
[377321940,1754341833083,-150.0,0.0004676,7]
[377321941,1754341833093,-150.0,0.00046834,7]
[377321942,1754341833103,-150.0,0.00046992,7]
[377321943,1754341833112,-1000.0,0.00047,120]
[377321944,1754341833122,-967.0,0.0004702,2]
[377321945,1754341833131,-493.68,0.00047147,120]
[377321946,1754341833141,-150.0,0.00047159,7]
[377321947,1754341833150,-1000.0,0.000472,7]
[377321948,1754341833160,-151.0,0.00047241,120]
[377321949,1754341833170,-249.05229713,0.00047333,120]
[377321950,1754341833180,-177.08130969,0.00047351,10]
[377321957,1754341833275,-339.91869031,0.00047351,10]
[377321959,1754341833285,-174.07749192,0.00047417,14]
[377321961,1754341833295,-1000.0,0.00047519,14]
[377321963,1754341833304,-1000.0,0.0004761,14]
[377321965,1754341833314,-211.425049,0.00047637,2]
[377321967,1754341833325,-150.0,0.00047641,14]
[377321969,1754341833334,-150.0,0.0004766,7]
[377321971,1754341833344,-150.0,0.00047686,7]
[377321973,1754341833353,-1500.0,0.000477,2]
[377321975,1754341833363,-551.846673,0.00047726,120]
[377321977,1754341833373,-152.71693079,0.00047807,7]
[377321979,1754341833383,-948.0,0.0004794,2]
[377321981,1754341833393,-150.0,0.00047967,7]
[377321983,1754341833403,-150.0,0.00047988,7]
[377321985,1754341833412,-6.54657556,0.00048,120]
[377321987,1754341833426,-993.45342444,0.00048,120]
[377321989,1754341833436,-150.0,0.00048032,7]
[377321991,1754341833446,-150.0,0.0004811,7]
[377321993,1754341833455,-1000.0,0.00048118,14]
[377321995,1754341833465,-274.4,0.00048145,2]
[377321997,1754341833475,-864.60642765,0.00048159,14]
[377321999,1754341833485,-150.0,0.00048223,2]
[377322001,1754341833495,-517.0,0.00048254,10]
[377322003,1754341833504,-150.0,0.00048273,3]
[377322005,1754341833514,-180.56668168,0.00048273,10]
[377322007,1754341833524,-629.39353435,0.00048273,10]
[377322009,1754341833535,-891.0,0.00048276,2]
[377322011,1754341833545,-1169.0,0.00048276,2]
[377322013,1754341833555,-865.0,0.00048276,2]
[377322015,1754341833565,-6070.0,0.00048276,2]
[377322017,1754341833575,-994.31082552,0.00048276,2]
[377322020,1754341833588,-15490.97669105,0.00048276,2]
[377322022,1754341833600,-4933.71248343,0.00048276,2]
[377322024,1754341833611,-152.0,0.00048292,4]
[377322026,1754341833622,-150.0,0.0004838,7]
[377322028,1754341833633,-523.09990895,0.00048388,2]
[377322030,1754341833643,-150.0,0.00048431,7]
[377322032,1754341833652,-1000.0,0.00048467,14]
[377322034,1754341833663,-150.0,0.00048472,7]
[377322036,1754341833673,-1000.0,0.00048494,14]
[377322038,1754341833683,-150.0,0.00048518,14]
[377322040,1754341833693,-600.0,0.0004855,14]
[377322042,1754341833702,-600.0,0.0004855,14]
[377322044,1754341833712,-233.87,0.0004855,14]
[377322046,1754341833722,-666.69596239,0.00048553,2]
[377322048,1754341833732,-1000.0,0.00048644,14]
[377322050,1754341833741,-150.0,0.00048696,7]
[377322052,1754341833753,-223.66494,0.000487,8]
[377322054,1754341833763,-150.0,0.00048736,7]
[377322056,1754341833772,-439.60369544,0.00048745,14]
[377322058,1754341833782,-151.0,0.00048752,120]
[377322060,1754341833792,-649.79,0.00048832,30]
[377322062,1754341833802,-1000.0,0.00048838,14]
[377322064,1754341833811,-950.76509513,0.00048838,14]
[377322066,1754341833824,-49.23490487,0.00048838,14]
[377322068,1754341833833,-150.0,0.00048842,7]
[377322070,1754341833843,-1265.01173799,0.00048868,120]
[377322072,1754341833853,-928.0,0.0004887,2]
[377322074,1754341833862,-493.68,0.00048877,120]
[377322076,1754341833872,-211.74152489,0.000489,10]
[377322089,1754341833881,-150.0,0.00048902,7]
[377322092,1754341834163,-156.76,0.00048924,2]
[377322093,1754341834175,-236.95100455,0.00048959,7]
[377322094,1754341834185,-1000.0,0.00049,120]
[377322095,1754341834195,-161.0,0.00049,90]
[377322096,1754341834205,-1000.0,0.00049039,14]
[377322097,1754341834216,-150.0,0.00049088,7]
[377322098,1754341834225,-1000.0,0.00049092,14]
[377322099,1754341834235,-1000.0,0.00049125,14]
[377322100,1754341834245,-600.0,0.00049132,14]
[377322101,1754341834255,-600.0,0.00049132,14]
[377322102,1754341834265,-233.87,0.00049132,14]
[377322103,1754341834276,-517.0,0.00049158,13]
[377322104,1754341834286,-1000.0,0.00049261,14]
[377322105,1754341834296,-150.0,0.00049268,7]
[377322106,1754341834306,-1000.0,0.00049337,30]
[377322107,1754341834316,-150.0,0.0004935,7]
[377322108,1754341834326,-150.0,0.00049384,30]
[377322109,1754341834336,-150.0,0.00049421,30]
[377322110,1754341834346,-466.93,0.00049507,30]
[377322111,1754341834356,-466.93,0.00049507,30]
[377322112,1754341834366,-466.93,0.00049507,30]
[377322113,1754341834376,-466.93,0.00049507,30]
[377322114,1754341834389,-150.0,0.00049521,7]
[377322115,1754341834400,-8112.77452328,0.00049525,15]
[377322116,1754341834414,-150.0,0.00049526,7]
[377322117,1754341834423,-150.0,0.00049528,30]
[377322118,1754341834433,-150.0,0.00049534,7]
[377322119,1754341834443,-150.0,0.00049535,7]
[377322120,1754341834453,-150.0,0.00049536,7]
[377322121,1754341834463,-150.0,0.00049538,7]
[377322122,1754341834473,-150.0,0.00049542,7]
[377322123,1754341834482,-150.0,0.00049543,7]
[377322124,1754341834491,-150.0,0.00049546,7]
[377322125,1754341834501,-150.0,0.00049547,7]
[377322126,1754341834511,-150.0,0.00049553,7]
[377322127,1754341834520,-150.0,0.00049556,7]
[377322128,1754341834530,-150.0,0.00049559,7]
[377322129,1754341834540,-150.0,0.0004956,7]
[377322130,1754341834551,-5000.0,0.00049562,120]
[377322131,1754341834560,-150.0,0.00049562,7]
[377322132,1754341834569,-150.0,0.00049569,7]
[377322133,1754341834579,-150.0,0.00049572,7]
[377322134,1754341834588,-150.0,0.00049573,7]
[377322135,1754341834598,-150.0,0.00049576,7]
[377322136,1754341834608,-150.0,0.00049584,7]
[377322137,1754341834617,-150.0,0.00049586,7]
[377322138,1754341834627,-150.0,0.00049589,7]
[377322139,1754341834637,-150.0,0.00049592,7]
[377322140,1754341834646,-150.0,0.00049596,7]
[377322141,1754341834656,-150.0,0.00049599,7]
[377322142,1754341834666,-800.0,0.000496,18]
[377322143,1754341834677,-150.0,0.00049601,7]
[377322144,1754341834687,-150.0,0.00049602,7]
[377322145,1754341834696,-150.0,0.00049604,7]
[377322146,1754341834706,-779.89,0.00049605,30]
[377322147,1754341834715,-779.89,0.00049605,30]
[377322148,1754341834725,-779.89,0.00049605,30]
[377322149,1754341834734,-150.0,0.00049605,7]
[377322150,1754341834744,-150.0,0.00049606,7]
[377322151,1754341834753,-150.0,0.00049611,7]
[377322152,1754341834762,-779.89,0.00049614,30]
[377322153,1754341834772,-51072.53198818,0.00049615,4]
[377322154,1754341834793,-955.71760402,0.00049615,4]
[377322157,1754341838431,-1126.0982972,0.00031359,7]
[377322158,1754341838443,-68.83690014,0.00031359,7]
[377322159,1754341838453,-150.0,0.00046407,2]
[377322160,1754341838463,-150.0,0.00046555,2]
[377322161,1754341838472,-150.0,0.00047015,7]
[377322162,1754341838482,-150.0,0.00047088,7]
[377322163,1754341838492,-159.22691402,0.0004726,3]
[377322164,1754341838510,-728.77308598,0.0004726,3]
[377322165,1754341838520,-150.0,0.00047326,7]
[377322166,1754341838530,-150.0,0.00048108,7]
[377322167,1754341838539,-300.0,0.00048178,7]
[377322168,1754341838549,-566.92836501,0.00048276,2]
[377322305,1754341840115,-888.0,0.00047515,3]
[377322307,1754341840126,-262.1,0.00048276,2]
[377322309,1754341840139,-252.00819999,0.00048276,2]
[377322354,1754341840395,-3055.963435,0.00048276,2]